bitfinex-derivatives/quotes_ETHF0:USTF0_20240917
["timestamp","ask_amount","ask_price","bid_price","bid_amount"]
[1726586795963,3.2078,2386.2,2385.5,1.84394623]
[1726586795964,3.62682,2386.2,2385.5,1.84394623]
[1726586796256,3.2078,2386.2,2385.9,0.41905]
[1726586796458,3.2078,2386.2,2385.5,1.84394623]
[1726586796645,3.2078,2386.2,2385.8,0.41907]
[1726586796852,3.62682,2386.2,2385.7,0.41909]
[1726586797053,3.62682,2386.2,2385.7,0.41908]
[1726586797548,3.62682,2386.2,2385.8,0.41908]
[1726586797749,0.41903,2386.1,2385.7,0.41909]
[1726586797944,3.2078,2386.2,2385.5,0.41912]
[1726586798149,0.41905,2386.0,2385.6,0.41911]
[1726586798349,4.25536,2386.2,2385.5,0.41913]
[1726586798556,5.09467,2385.9,2385.5,0.41913]
[1726586798750,1.6044,2385.8,2385.6,0.41911]
[1726586799152,1.6044,2385.8,2385.5,0.41912]
[1726586799458,1.6044,2385.8,2385.5,0.41913]
[1726586799459,2.02348,2385.8,2385.5,0.41913]
[1726586799758,2.02349,2385.8,2385.5,0.41913]
[1726586799958,2.02349,2385.8,2385.5,0.41912]
[1726586800259,1.6044,2385.8,2385.2,1.04794]
[1726586800456,1.6044,2385.8,2385.5,0.41912]
[1726586800654,2.02348,2385.8,2385.5,0.41912]
[1726586800960,1.6044,2385.8,2385.2,1.04797]
[1726586801157,1.6044,2385.8,2385.5,0.41912]
[1726586801459,1.6044,2385.8,2385.6,0.4191]
[1726586801663,1.6044,2385.8,2385.7,0.4191]
[1726586801860,3.2078,2386.2,2386.0,0.41904]
[1726586802156,0.41907,2385.9,2385.6,0.41911]
[1726586802357,0.41909,2385.8,2385.5,0.41912]
[1726586802554,0.41909,2385.8,2385.1,4.25579]
[1726586802555,1.5473,2385.8,2385.3,0.31248041]
[1726586802755,1.5125,2385.7,2385.5,0.41913]
[1726586802954,1.93161,2385.7,2385.4,0.41914]
[1726586803457,1.5125,2385.7,2385.6,0.41911]
[1726586803650,1.5125,2385.7,2385.2,1.04797]
[1726586803853,1.5125,2385.7,2385.5,0.41913]
[1726586804359,0.41912,2385.6,2385.3,0.41916]
[1726586804559,1.9316,2385.7,2385.1,1.89845337]
[1726586804753,1.9316,2385.7,2385.4,0.41914]
[1726586805259,0.41912,2385.6,2385.1,1.89845337]
[1726586805564,0.41911,2385.6,2385.4,0.41914]
[1726586805766,1.93161,2385.7,2385.4,0.41914]
[1726586805958,0.41911,2385.6,2385.4,0.41914]
[1726586806256,0.41911,2385.6,2385.0,2.58781]
[1726586806463,1.5125,2385.7,2385.1,0.4192]
[1726586806464,3.27,2385.3,2385.1,0.4192]
[1726586806653,1.6171,2385.2,2385.1,0.4192]
[1726586806855,3.2078,2385.5,2385.3,0.41916]
[1726586807264,3.2078,2385.5,2385.4,0.41915]
[1726586808660,3.2078,2385.5,2385.1,1.5497]
[1726586808952,3.2078,2385.5,2384.3,1.04834]
[1726586808953,3.68919,2385.2,2384.3,1.04834]
[1726586809255,3.1077,2385.1,2384.6,1.04823]
[1726586809457,3.1077,2385.1,2384.9,0.41922]
[1726586809662,3.1077,2385.1,2384.9,0.41923]
[1726586809855,3.1077,2385.1,2384.8,0.41924]
[1726586810052,3.1077,2385.1,2384.7,0.41926]
[1726586810053,3.5269,2385.1,2384.7,0.41926]
[1726586810251,3.1077,2385.1,2384.6,0.41928]
[1726586810460,0.41924,2385.0,2384.6,0.41929]
[1726586810654,0.41924,2384.9,2384.4,3.2078]
[1726586810860,0.41923,2385.0,2384.6,0.41928]
[1726586811564,3.52691,2385.1,2384.7,0.41926]
[1726586811755,3.1077,2385.1,2384.7,0.41927]
[1726586811956,0.41922,2385.0,2384.7,0.41927]
[1726586812155,3.52691,2385.1,2384.7,0.41927]
[1726586812461,3.52691,2385.1,2384.7,0.41926]
[1726586813462,3.1077,2385.1,2384.8,0.41925]
[1726586813663,1.4856,2385.1,2385.0,0.41922]
[1726586813862,3.068,2385.4,2385.0,4.1928]
[1726586814086,4.6196,2385.4,2384.8,4.7244]
[1726586814263,3.1018,2385.4,2385.3,0.41917]
[1726586814460,3.1018,2385.4,2385.1,0.41919]
[1726586815366,6.3718,2385.4,2385.0,0.41922]
[1726586815563,6.79096,2385.4,2385.0,0.41922]
[1726586815965,6.3718,2385.4,2384.8,3.1284]
[1726586816169,6.79095,2385.4,2385.0,0.41922]
[1726586816365,6.79095,2385.4,2384.9,0.41924]
[1726586816366,0.41917,2385.3,2384.9,0.41924]
[1726586816572,0.41917,2385.3,2384.9,0.41923]
[1726586817474,3.2078,2385.2,2384.9,0.41923]
[1726586817978,0.41917,2385.3,2384.9,0.41923]
[1726586818476,3.2078,2385.2,2384.9,0.41923]
[1726586818775,0.41917,2385.3,2384.9,0.41923]
[1726586818967,3.2078,2385.2,2384.9,0.41923]
[1726586819169,6.79095,2385.4,2385.0,0.41921]
[1726586819370,7.46635137,2385.4,2384.9,0.41922]
[1726586819563,3.2078,2385.2,2384.9,0.41922]
[1726586819761,3.1018,2385.4,2384.9,3.2078]
[1726586819968,3.1018,2385.4,2384.8,3.1284]
[1726586819969,0.41917,2385.3,2384.8,3.1284]
[1726586820169,6.3718,2385.4,2385.0,0.41921]
[1726586820369,6.3718,2385.4,2384.8,3.1284]
[1726586820572,3.1018,2385.4,2385.3,0.41917]
[1726586821169,3.1018,2385.4,2384.9,1.0481]
[1726586821170,3.1018,2385.4,2385.2,0.41917]
[1726586821364,3.1018,2385.4,2384.9,1.0481]
[1726586821581,3.1018,2385.4,2384.8,4.17654]
[1726586821782,3.1018,2385.4,2385.2,0.41917]
[1726586822077,3.1018,2385.4,2385.3,0.41917]
[1726586822580,3.1018,2385.4,2385.2,0.41918]
[1726586822982,3.1018,2385.4,2384.9,1.04809]
[1726586823182,3.1018,2385.4,2385.2,0.41917]
[1726586823577,3.1018,2385.4,2385.3,0.41917]
[1726586823780,1.5516,2385.4,2385.3,0.41917]
[1726586823985,3.2078,2385.5,2385.4,0.41915]
[1726586824481,3.2078,2385.5,2385.1,1.048]
[1726586824788,3.2078,2385.5,2385.4,0.41915]
[1726586825280,3.2078,2385.5,2385.3,0.41916]
[1726586825972,3.2078,2385.5,2385.4,0.41915]
[1726586826278,6.4778,2385.6,2385.0,4.56424921]
[1726586826479,6.4778,2385.6,2385.3,0.41915]
[1726586826677,6.4778,2385.6,2385.3,0.41916]
[1726586826879,6.89692,2385.6,2385.2,0.41917]
[1726586827176,6.4778,2385.6,2385.0,3.51619921]
[1726586827381,6.4778,2385.6,2385.3,0.41916]
[1726586827679,6.4778,2385.6,2385.0,3.51619921]
[1726586827680,3.2078,2385.6,2385.5,0.41913]
[1726586827981,1.6153,2385.7,2385.5,0.41912]
[1726586828579,1.6153,2385.7,2385.3,1.5397]
[1726586828580,1.4995,2385.8,2385.7,0.4191]
[1726586828780,1.5241,2386.1,2385.7,0.4191]
[1726586829111,1.5241,2386.1,2385.7,0.41908]
[1726586829273,1.5241,2386.1,2385.4,4.855]
[1726586829475,3.03768137,2386.1,2385.6,0.41911]
[1726586829775,2.61865137,2386.1,2385.7,0.41909]
[1726586829975,2.61865137,2386.1,2385.4,4.855]
[1726586829976,1.5241,2386.1,2385.4,4.855]
[1726586830187,1.5241,2386.1,2385.4,5.15952683]
[1726586830682,6.30768137,2386.1,2385.6,0.4191]
[1726586830885,3.27,2385.7,2385.1,1.06168198]
[1726586831188,1.6232,2385.6,2385.5,0.41913]
[1726586831381,1.09455137,2385.9,2385.2,3.27]
[1726586831684,2.71775137,2386.0,2385.6,0.41911]
[1726586831982,2.71775137,2386.0,2385.1,1.04801]
[1726586831983,2.71775137,2386.0,2385.5,0.41912]
[1726586832172,3.13680137,2386.0,2385.5,0.41912]
[1726586832376,2.71775137,2386.0,2385.5,0.41912]
[1726586832586,0.41906,2385.9,2385.2,3.27]
[1726586832970,2.71775137,2386.0,2385.2,4.31794]
[1726586833177,2.71775137,2386.0,2385.7,0.41909]
[1726586833373,2.71775137,2386.0,2385.7,0.41908]
[1726586833574,2.71775137,2386.0,2385.8,0.41908]
[1726586833781,2.71775137,2386.0,2385.7,0.41908]
[1726586834189,2.71775137,2386.0,2385.5,3.0817]
[1726586834384,2.71775137,2386.0,2385.5,3.50082]
[1726586834583,2.71775137,2386.0,2385.5,3.0817]
[1726586834784,2.71775137,2386.0,2385.7,0.41909]
[1726586834992,2.71775137,2386.0,2385.5,3.0817]
[1726586835193,1.6232,2386.0,2385.6,0.4191]
[1726586835389,3.27,2385.9,2385.5,3.39000599]
[1726586835589,6.4778,2385.9,2385.5,3.0817]
[1726586835885,3.2078,2385.8,2385.5,1.563]
[1726586836092,3.2078,2385.8,2385.4,0.41914]
[1726586836390,4.7536,2385.9,2385.2,1.5187]
[1726586836583,4.7536,2385.9,2385.3,0.41917]
[1726586836782,3.2078,2385.7,2385.2,1.82893757]
[1726586836982,3.2078,2385.8,2385.3,0.41916]
[1726586837379,3.2078,2385.8,2385.2,2.88946472]
[1726586837702,3.2078,2385.8,2385.4,0.41915]
[1726586837994,1.4836,2385.9,2385.4,3.27]
[1726586838192,1.6232,2386.0,2385.4,3.27]
[1726586838389,1.6232,2386.0,2385.6,0.4191]
[1726586838992,2.04224,2386.0,2385.5,0.41912]
[1726586839294,3.2078,2385.9,2385.2,5.09893757]
[1726586839493,3.2078,2385.8,2385.5,0.41913]
[1726586839792,2.04225,2386.0,2385.2,1.82893757]
[1726586839793,3.27,2385.7,2385.2,1.82893757]
[1726586839977,3.2078,2385.4,2385.1,1.5969]
[1726586840183,3.27,2385.5,2385.1,2.01609]
[1726586840381,3.1696,2385.4,2385.1,1.5969]
[1726586841077,3.1696,2385.4,2385.1,1.9022463]
[1726586841286,3.1696,2385.4,2385.2,0.41918]
[1726586841495,3.1696,2385.4,2385.1,2.3214463]
[1726586841786,6.3774,2385.4,2384.9,1.5814]
[1726586842084,3.1696,2385.4,2384.9,1.5814]
[1726586842285,3.27,2385.1,2384.6,0.41929]
[1726586842688,3.27,2385.1,2384.4,1.5513]
[1726586842886,3.27,2385.1,2384.5,1.01144667]
[1726586843082,3.1696,2385.4,2384.6,6.4778]
[1726586843284,3.1696,2385.4,2384.8,3.27]
[1726586843585,3.1696,2385.4,2385.0,3.68921]
[1726586843787,3.1696,2385.4,2385.1,0.4192]
[1726586843990,3.1696,2385.4,2385.0,3.68921]
[1726586844197,3.1696,2385.4,2385.1,0.4192]
[1726586844491,3.2078,2386.0,2385.3,0.41916]
[1726586844689,3.2078,2386.0,2385.4,3.27]
[1726586844690,3.0837,2385.9,2385.4,3.27]
[1726586844891,3.0837,2385.9,2385.5,0.41912]
[1726586845089,3.0837,2385.9,2385.6,3.6891]
[1726586845386,3.0837,2385.9,2385.6,3.68911]
[1726586845597,3.0837,2385.9,2385.6,3.27]
[1726586845894,3.0837,2385.9,2385.5,1.97042]
[1726586846792,3.0837,2385.9,2385.6,3.62691]
[1726586846992,3.0837,2385.9,2385.6,3.2078]
[1726586847299,3.0837,2385.9,2385.5,3.52042]
[1726586847488,3.0837,2385.9,2385.5,3.1013]
[1726586847791,3.0837,2385.9,2385.5,3.52042]
[1726586847985,3.0837,2385.9,2385.5,3.1013]
[1726586848295,3.0837,2385.9,2385.5,0.41913]
[1726586848497,3.27,2385.6,2385.3,1.55]
[1726586848683,3.27,2385.8,2385.3,1.55]
[1726586848884,7.38735678,2385.9,2385.3,4.82]
[1726586849096,3.0837,2385.9,2385.4,0.41915]
[1726586849295,3.0837,2385.9,2385.3,5.12768862]
[1726586849591,6.2915,2385.9,2385.3,5.12768862]
[1726586849890,3.0837,2385.9,2385.3,5.54684862]
[1726586850097,6.2915,2385.9,2385.3,5.54684862]
[1726586850289,3.0837,2385.9,2385.3,5.54684862]
[1726586850596,6.2915,2385.9,2385.3,5.54684862]
[1726586850894,6.2915,2385.9,2385.3,1.85768862]
[1726586850895,9.98057,2385.9,2385.3,1.85768862]
[1726586851191,9.98057,2385.9,2385.1,1.94429]
[1726586851192,3.27,2385.4,2385.0,1.4798638]
[1726586851392,3.2078,2385.1,2384.3,7.5119638]
[1726586851606,3.27,2385.2,2384.4,3.80774759]
[1726586851796,3.27,2385.2,2384.5,0.59992012]
[1726586852101,3.2078,2385.2,2384.6,0.41929]
[1726586852483,4.30365678,2385.2,2384.6,0.41929]
[1726586852796,3.2078,2385.0,2384.5,0.4193]
[1726586853485,4.36585678,2385.2,2384.5,0.4193]
[1726586853684,3.2078,2385.1,2384.4,3.62711]
[1726586853890,4.78504678,2385.2,2384.4,3.2078]
[1726586854195,3.2078,2385.1,2384.5,0.4193]
[1726586854592,3.2078,2385.1,2384.6,0.41929]
[1726586854794,3.2078,2385.1,2384.5,0.4193]
[1726586855295,4.36585678,2385.2,2384.6,0.41928]
[1726586855492,3.2078,2385.2,2384.7,0.41927]
[1726586855690,5.72365678,2385.3,2384.4,3.2078]
[1726586855691,3.2078,2385.1,2384.4,3.2078]
[1726586855996,5.72365678,2385.3,2384.4,3.2078]
[1726586856200,3.2078,2385.1,2384.5,0.4193]
[1726586856400,3.2078,2385.1,2384.4,3.2078]
[1726586856589,6.27158517,2385.3,2384.4,3.2078]
[1726586856590,4.6278,2385.3,2384.7,3.27]
[1726586856892,4.6278,2385.3,2384.8,0.41924]
[1726586857097,4.6278,2385.3,2384.7,6.4778]
[1726586857488,4.6278,2385.3,2384.9,0.41923]
[1726586857692,4.6278,2385.3,2384.8,1.6293]
[1726586857693,4.6278,2385.3,2384.8,2.04854]
[1726586858091,4.6278,2385.3,2384.8,1.6293]
[1726586858393,3.68919,2385.2,2384.7,3.2078]
[1726586858793,3.6892,2385.2,2384.7,3.2078]
[1726586858992,3.6892,2385.2,2384.6,0.41928]
[1726586859192,3.2078,2385.1,2384.7,0.41927]
[1726586859599,3.2078,2385.1,2384.3,10.7890638]
[1726586859600,3.2078,2385.1,2384.3,9.7284]
[1726586859897,4.6278,2385.3,2384.7,0.41927]
[1726586860089,0.4192,2385.1,2384.6,3.62708]
[1726586860298,3.2078,2385.1,2384.6,3.62708]
[1726586860697,3.627,2385.1,2384.6,3.62708]
[1726586860894,3.2078,2385.1,2384.6,3.62708]
[1726586861394,3.2078,2385.1,2384.7,0.41927]
[1726586861589,0.4192,2385.2,2384.7,0.41927]
[1726586861793,3.2078,2385.1,2384.7,0.41927]
[1726586862596,3.62702,2385.1,2384.6,3.2078]
[1726586862797,3.62702,2385.1,2384.6,3.62708]
[1726586862997,3.2078,2385.1,2384.7,0.41927]
[1726586863399,3.627,2385.1,2384.6,3.94560693]
[1726586863606,3.2078,2385.1,2384.7,0.41927]
[1726586863795,6.89701,2385.1,2384.6,3.94560693]
[1726586863995,3.68921,2385.1,2384.6,0.73780693]
[1726586864206,3.6892,2385.1,2384.6,0.73780693]
[1726586864612,3.2078,2385.0,2384.6,0.73780693]
[1726586865401,3.62703,2385.0,2384.5,0.4193]
[1726586865706,0.41924,2384.9,2384.5,0.4193]
[1726586865901,0.41924,2384.9,2384.3,6.4584]
[1726586865902,3.2078,2384.7,2384.3,0.41933]
[1726586866099,1.5566,2384.6,2384.3,0.41933]
[1726586866298,1.5569,2384.8,2384.5,3.68931]
[1726586866494,1.5569,2384.8,2384.5,3.27]
[1726586866704,1.5569,2384.8,2384.6,0.41928]
[1726586866906,1.5569,2384.8,2384.3,6.4778]
[1726586867103,1.5569,2384.8,2384.5,0.4193]
[1726586867307,1.5569,2384.8,2384.4,0.41931]
[1726586867701,5.24617,2384.8,2384.3,3.52086188]
[1726586867902,1.6097,2384.7,2384.3,3.52086188]
[1726586868307,1.6097,2384.7,2384.4,0.41932]
[1726586868712,1.6097,2384.7,2384.3,3.94019188]
[1726586868909,1.6097,2384.7,2384.3,0.31306188]
[1726586869106,1.6097,2384.7,2384.5,0.41929]
[1726586869408,1.6097,2384.7,2384.1,13.1424807]
[1726586869611,1.6097,2384.7,2384.1,12.0940507]
[1726586869906,4.7644,2384.9,2384.1,12.0940507]
[1726586870103,1.5566,2384.9,2384.7,0.41927]
[1726586870808,1.5566,2384.9,2384.6,0.41928]
[1726586871209,1.5566,2384.9,2384.3,4.25615]
[1726586871405,1.5566,2384.9,2384.6,0.01926987]
[1726586871703,1.5566,2384.9,2384.7,0.41927]
[1726586871896,1.5566,2384.9,2384.8,0.41925]
[1726586872307,1.5566,2384.9,2384.8,0.43851987]
[1726586872906,1.5566,2384.9,2384.8,0.01926987]
[1726586873101,8.9572,2384.9,2384.8,0.01926987]
[1726586873305,9.37644,2384.9,2384.8,0.01926987]
[1726586873813,0.41927,2384.8,2384.0,4.31847]
[1726586874139,8.9572,2384.9,2384.3,0.41934]
[1726586874140,3.68928,2384.7,2384.3,0.41934]
[1726586874411,8.0344,2384.9,2384.1,3.54353266]
[1726586874705,1.5716,2384.6,2384.1,3.54353266]
[1726586875008,1.5716,2384.6,2384.4,0.41931]
[1726586875215,1.5716,2384.6,2384.1,3.54353266]
[1726586875504,1.5716,2384.6,2384.4,0.41932]
[1726586877210,1.5716,2384.6,2384.5,0.41931]
[1726586877407,1.5566,2384.9,2384.8,0.41925]
[1726586877609,1.5566,2384.9,2384.7,0.41926]
[1726586877912,1.5566,2384.9,2384.7,0.41927]
[1726586878311,1.5566,2384.9,2384.3,1.04834]
[1726586878609,3.2078,2385.2,2384.9,0.41922]
[1726586878810,3.2078,2385.2,2384.4,4.25611]
[1726586878811,0.41921,2385.1,2384.7,0.41926]
[1726586879316,3.27,2385.0,2384.7,0.41926]
[1726586879708,7.9936,2385.2,2384.4,4.25611]
[1726586879916,7.9936,2385.2,2384.9,0.41923]
[1726586880417,0.41921,2385.1,2384.7,0.41926]
[1726586880804,0.41923,2385.0,2384.4,3.5134537]
[1726586881004,5.83378,2385.2,2384.4,3.5134537]
[1726586881206,0.211,2386.3,2385.1,6.4778]
[1726586881406,1.04733,2386.7,2385.1,6.4778]
[1726586881407,0.211,2387.1,2386.2,3.27]
[1726586881626,3.3034,2387.0,2386.8,0.4189]
[1726586881811,3.3034,2387.0,2386.5,3.27]
[1726586882016,3.3034,2387.0,2386.8,0.41889]
[1726586882202,1.641,2387.0,2386.9,3.27]
[1726586882407,0.211,2388.4,2386.9,7.4596]
[1726586882408,1.5694,2387.8,2386.9,7.4596]
[1726586882607,1.5694,2387.8,2387.2,0.41883]
[1726586882908,1.98814,2387.8,2387.0,3.62666]
[1726586883109,1.98814,2387.8,2387.1,0.41885]
[1726586883312,3.27,2387.5,2387.0,3.2078]
[1726586883815,4.8639,2387.5,2387.0,3.2078]
[1726586884004,1.5939,2387.5,2387.0,3.2078]
[1726586884414,1.5939,2387.5,2387.0,3.62667]
[1726586885220,1.5939,2387.5,2387.1,0.41884]
[1726586885515,1.5939,2387.5,2387.1,0.41885]
[1726586886516,1.5939,2387.5,2387.1,0.41884]
[1726586886715,1.5939,2387.5,2387.0,3.2078]
[1726586887018,1.5939,2387.5,2387.1,0.41884]
[1726586887229,2.01268,2387.5,2387.0,3.2078]
[1726586887520,2.01268,2387.5,2387.1,0.41884]
[1726586887521,1.5939,2387.5,2387.1,0.41884]
[1726586887913,4.1888,2387.4,2387.1,0.41884]
[1726586888110,1.6042,2387.3,2387.1,0.41884]
[1726586888310,5.793,2387.3,2387.1,0.41884]
[1726586888517,4.1888,2387.2,2386.7,1.04731]
[1726586888715,1.6042,2387.3,2387.0,0.41886]
[1726586889129,4.1888,2387.2,2387.1,0.41885]
[1726586889317,1.6042,2387.3,2386.6,3.52582343]
[1726586889517,3.2078,2387.2,2386.8,0.41889]
[1726586889718,1.6042,2387.3,2386.6,3.2078]
[1726586890117,1.6042,2387.3,2387.0,0.41886]
[1726586890316,3.2078,2387.8,2387.0,4.02]
[1726586890517,3.251,2387.9,2387.7,0.41873]
[1726586890719,3.251,2387.9,2387.8,0.41873]
[1726586890924,7.439,2387.9,2387.7,0.41873]
[1726586891124,3.251,2387.9,2387.1,4.02]
[1726586891421,6.87752,2387.9,2387.5,0.41877]
[1726586891624,6.4588,2387.9,2387.2,1.04709]
[1726586891825,6.4588,2387.9,2387.5,0.41877]
[1726586892021,0.41873,2387.8,2387.4,0.41879]
[1726586892222,6.4588,2387.9,2387.2,3.2078]
[1726586892426,6.87751,2387.9,2387.5,0.41877]
[1726586892624,6.4588,2387.9,2387.6,0.41876]
[1726586892820,6.4588,2387.9,2387.2,3.2078]
[1726586893121,6.4588,2387.9,2387.3,0.41881]
[1726586893321,6.4588,2387.9,2387.5,0.41878]
[1726586893322,3.2078,2387.6,2387.5,0.41878]
[1726586893821,7.3958,2387.6,2387.5,0.41878]
[1726586894132,4.188,2387.6,2387.5,0.41878]
[1726586894330,6.87752,2387.9,2387.5,0.41878]
[1726586894530,6.87752,2387.9,2387.5,0.41877]
[1726586894834,6.87752,2387.9,2387.6,0.41876]
[1726586895130,6.87752,2387.9,2387.1,8.27491]
[1726586895131,6.87752,2387.9,2387.5,0.41877]
[1726586895329,0.41873,2387.8,2387.4,0.41879]
[1726586895524,0.41873,2387.8,2387.1,7.2278]
[1726586895831,6.4588,2387.9,2387.3,0.41881]
[1726586896024,3.62657,2387.6,2387.3,0.41881]
[1726586896219,3.2078,2387.6,2387.3,0.41881]
[1726586896419,3.2078,2387.6,2386.9,0.30727284]
[1726586896420,4.1888,2387.5,2386.8,3.2078]
[1726586896733,3.2078,2387.0,2386.2,7.2278]
[1726586896923,6.7819,2386.9,2386.5,0.41895]
[1726586897123,3.2078,2386.8,2386.5,0.41894]
[1726586897345,3.57409,2386.9,2386.6,0.41893]
[1726586897346,3.1552,2386.9,2386.6,0.41893]
[1726586897626,6.78189,2386.9,2386.6,0.41894]
[1726586897831,4.1896,2386.8,2386.6,0.41894]
[1726586898220,4.1896,2386.7,2386.5,0.41894]
[1726586898423,6.78189,2386.9,2386.6,0.41893]
[1726586898625,6.78189,2386.9,2386.5,0.41894]
[1726586898926,6.363,2386.9,2386.4,0.41896]
[1726586899126,0.41894,2386.7,2386.4,0.41897]
[1726586899328,0.41891,2386.8,2386.4,0.41897]
[1726586899628,6.78189,2386.9,2386.5,0.41895]
[1726586900423,6.363,2386.9,2386.2,7.2278]
[1726586900621,6.363,2386.9,2386.6,0.41893]
[1726586900822,6.363,2386.9,2386.2,7.2278]
[1726586901138,6.363,2386.9,2386.2,3.2078]
[1726586901327,0.41896,2386.5,2386.0,0.41904]
[1726586901629,0.41896,2386.5,2385.9,3.2078]
[1726586901833,0.41896,2386.5,2386.0,0.41903]
[1726586902026,3.2078,2386.6,2386.0,0.41903]
[1726586902027,3.2078,2386.6,2386.0,0.41904]
[1726586902331,3.62675,2386.6,2386.1,0.41902]
[1726586902633,3.2078,2386.6,2386.2,0.419]
[1726586902831,3.2078,2386.6,2386.3,0.41898]
[1726586903134,3.2078,2386.6,2386.2,0.419]
[1726586903635,3.62675,2386.6,2386.2,0.419]
[1726586903836,3.62675,2386.6,2386.2,0.41901]
[1726586904633,7.81715,2386.6,2386.2,0.419]
[1726586905135,7.81715,2386.6,2385.9,3.62685]
[1726586905136,3.2078,2386.3,2385.9,3.62685]
[1726586905327,3.6268,2386.3,2386.0,0.41904]
[1726586905528,3.6268,2386.3,2385.9,3.2078]
[1726586905529,1.588,2386.2,2385.9,3.2078]
[1726586905730,4.7958,2386.2,2385.6,3.2078]
[1726586906032,3.56733,2386.1,2385.4,1.6119]
[1726586906227,3.1483,2386.1,2385.4,1.6119]
[1726586906434,1.588,2386.2,2385.9,0.41905]
[1726586906637,2.00702,2386.2,2385.9,0.41905]
[1726586906830,1.588,2386.2,2386.1,0.41903]
[1726586907942,1.6452,2386.5,2386.2,0.419]
[1726586908131,1.577,2386.8,2386.2,7.2278]
[1726586908332,0.211,2387.6,2386.2,7.2278]
[1726586908333,3.2078,2387.6,2386.6,3.2078]
[1726586908526,1.577,2387.5,2387.0,4.02]
[1726586908842,1.577,2387.5,2387.0,4.43887]
[1726586909031,1.577,2387.5,2387.0,0.41887]
[1726586909225,1.577,2387.5,2386.9,0.41888]
[1726586909432,1.577,2387.5,2386.7,7.2278]
[1726586909632,1.577,2387.5,2387.0,0.41886]
[1726586910040,1.577,2387.5,2387.0,4.02]
[1726586910235,4.7848,2387.5,2386.7,7.53750919]
[1726586910439,1.577,2387.5,2387.0,0.41886]
[1726586910741,1.577,2387.5,2386.7,7.53750919]
[1726586910939,1.577,2387.5,2387.0,0.41887]
[1726586911137,1.577,2387.5,2386.9,0.41888]
[1726586911340,3.2078,2387.3,2386.6,0.41893]
[1726586911655,3.2078,2387.3,2386.4,7.2278]
[1726586911935,1.577,2387.5,2386.7,7.2278]
[1726586912140,1.577,2387.5,2387.1,0.41884]
[1726586912337,1.577,2387.5,2387.2,0.41883]
[1726586912530,1.577,2387.5,2387.1,0.41884]
[1726586913033,5.27172,2387.9,2387.1,0.41884]
[1726586913237,4.853,2387.9,2387.2,0.41883]
[1726586913744,4.853,2387.9,2387.0,7.2278]
[1726586913745,4.853,2387.9,2387.0,7.53923712]
[1726586913938,5.27172,2387.9,2387.2,0.41883]
[1726586914138,5.27172,2387.9,2387.2,0.41882]
[1726586914440,4.853,2387.9,2387.2,0.41882]
[1726586914739,0.41873,2387.8,2387.2,0.41882]
[1726586915741,0.41875,2387.7,2387.1,0.41884]
[1726586916043,3.2078,2387.6,2387.0,3.2078]
[1726586916238,3.2078,2387.6,2386.5,3.2078]
[1726586916438,0.41886,2387.1,2386.5,3.2078]
[1726586916642,0.41886,2387.1,2386.6,0.41893]
[1726586916839,1.5935,2387.0,2386.6,0.41893]
[1726586917435,2.01238,2387.0,2386.5,0.41895]
[1726586917636,4.8013,2387.0,2386.6,0.41893]
[1726586918143,4.8013,2387.0,2386.3,1.86465716]
[1726586918442,0.41889,2386.9,2386.5,0.41895]
[1726586918647,3.2078,2386.9,2386.3,1.86465716]
[1726586918844,3.2078,2386.9,2386.1,3.2078]
[1726586919158,3.2078,2386.9,2386.1,7.2278]
[1726586919445,3.62669,2386.9,2386.5,0.41895]
[1726586919654,3.2078,2386.9,2386.1,8.27533]
[1726586919948,3.2078,2386.9,2386.6,0.41893]
[1726586920348,3.2078,2386.9,2386.1,7.2278]
[1726586920542,0.41891,2386.8,2386.4,0.41896]
[1726586921248,3.6267,2386.9,2386.5,0.41895]
[1726586921539,3.6267,2386.9,2386.4,0.41896]
[1726586921540,0.41891,2386.8,2386.4,0.41896]
[1726586923449,0.41893,2386.7,2386.4,0.41897]
[1726586923748,0.41895,2386.6,2386.1,3.2078]
[1726586924048,0.41898,2386.4,2386.1,3.2078]
[1726586924545,0.419,2386.3,2386.1,3.2078]
[1726586924743,2.02688,2386.4,2386.1,3.62682]
[1726586925143,1.6727,2386.5,2386.4,0.41897]
[1726586925442,4.255,2387.0,2386.5,0.41895]
[1726586925641,2.10611,2386.8,2386.5,0.41895]
[1726586926140,3.2078,2386.6,2386.1,3.2078]
[1726586926335,0.41896,2386.5,2386.2,0.419]
[1726586926537,3.2078,2386.6,2386.1,3.2078]
[1726586926742,0.41893,2386.7,2386.4,0.41897]
[1726586927047,0.41895,2386.6,2386.3,0.41898]
[1726586927547,0.41893,2386.7,2386.4,0.41897]
[1726586928158,0.41891,2386.8,2386.4,0.41896]
[1726586928448,0.41891,2386.8,2386.5,0.41895]
[1726586928747,1.6721,2387.0,2386.5,3.2078]
[1726586928950,1.6721,2387.0,2386.8,0.41889]
[1726586929750,1.6721,2387.0,2386.7,4.43891]
[1726586930051,2.09097,2387.0,2386.5,4.7564]
[1726586930242,2.09097,2387.0,2386.6,0.41892]
[1726586930447,1.6721,2387.0,2386.7,0.41892]
[1726586930647,2.09098,2387.0,2386.7,0.41892]
[1726586931048,1.6721,2387.0,2386.5,3.2078]
[1726586931246,1.6721,2387.0,2386.2,3.2078]
[1726586931247,0.41891,2386.8,2386.2,3.2078]
[1726586931445,0.41893,2386.7,2386.4,0.41897]
[1726586931744,0.41894,2386.6,2386.3,0.41898]